Workbook

Sheet N3_Practice_Material
B2: N3 Lifeskills - Practice Assessment Created by Mr.Lafferty@mathsrevision.com
AZ6: 2 | BA6: =IF(AZ6=1,"weekly","monthly") -> monthly
AZ7: =BA6 -> monthly | BA7: =ROUND(RAND()*(800-400)+400,1) -> 664.6
D8: ="Q1. (a) Joseph's "&AZ7&" wage-slip is shown opposite." -> Q1. (a) Joseph's monthly wage-slip is shown opposite. | Y8: Gross Pay | AE8: =AZ8 -> 2658.4 | AZ8: =IF(AZ6=2,BA8,BA7) -> 2658.4 | BA8: =4*BA7 -> 2658.4
Y9: Deductions | AE9: =AZ9 -> 850.7 | AZ9: =ROUND(ROUND(RAND()*(0.35-0.27)+0.27,2)*AZ8,1) -> 850.7
E10: Calculate his NET pay. | Y10: NET Pay | AZ10: =AZ8-AZ9 -> 1807.7
AZ11: =IF(AZ6=1,"week","month") -> month
D12: =" (b) Joseph's sells cars and receives a bonus of £"&AZ12&" for every car he sells." -> (b) Joseph's sells cars and receives a bonus of £332 for every car he sells. | AG12: BONUS | AZ12: =ROUND(AZ8/(BA12+1),0) -> 332 | BA12: =ROUND(RAND()*(9-4)+4,0) -> 7
F13: ="This "&AZ11&" he sells "&BA12&" cars." -> This month he sells 7 cars. | AG13: ="Tax @ "&AZ13&"%" -> Tax @ 20% | AZ13: =ROUND(RAND()*(2-1)+1,0)*10 -> 20 | BA13: =BA12*AZ12 -> 2324
F14: ="He must pay tax on his bonus at a rate of "&AZ13&"%. Fill in the bonus part of his wage-slip." -> He must pay tax on his bonus at a rate of 20%. Fill in the bonus part of his wage-slip. | AG14: Actual Bonus | AZ14: =AZ13/100*BA13 -> 464.8
AZ15: =BA13-AZ14 -> 1859.2
D17: ="Q2. John's monthly expenditure is shown below. Calculate his total expenditure." -> Q2. John's monthly expenditure is shown below. Calculate his total expenditure. | AZ17: =IF(BB17=1,"Yes","No") -> No | BA17: =ROUND(RAND()*(18-7.5)+7.5,1) -> 10 | BB17: =ROUND(RAND()*(1-0)+0,0) -> 0
R19: Expenditure | X19: Amount
R20: Food | X20: =AZ20 -> 349.16 | AZ20: =ROUND(RAND()*(450-300)+300,2) -> 349.16
R21: Mortgage | X21: =AZ21 -> 502.78 | AZ21: =ROUND(RAND()*(600-290)+290,2) -> 502.78
R22: Car | X22: 160 | AZ22: =ROUND(RAND()*(200-110)+110,0) -> 160
R23: Council Tax | X23: 193.32 | AZ23: =ROUND(RAND()*(200-90)+90,2) -> 193.32
R24: Utilities | X24: 88.18 | AZ24: =ROUND(RAND()*(190-80)+80,2) -> 88.18
R25: Total Expenditure | AZ25: =SUM(AZ20:AZ24) -> 1293.44
E28: ="If John's total income (including bonuses + overtime ) is £"&AZ28&". Fill in the table below to show how much he saves each month." -> If John's total income (including bonuses + overtime ) is £1944.04. Fill in the table below to show how much he saves each month. | AZ28: =SUM(AZ23:AZ27)+ROUND(RAND()*(500-100)+100,1) -> 1944.04
AZ29: =AZ25 -> 1293.44
R30: Expenditure | X30: Amount | AZ30: =AZ28-AZ29 -> 650.6
R31: Total Income
R32: Expenditure
R33: Savings
BA35: =ROUND(RAND()*(2-1)+1,0) -> 2 | BC35: =ROUND(RAND()*(5-1)+1,0) -> 3 | BD35: 1 | BE35: Spain
AZ36: =ROUND(RAND()*(9-3)+3,0) -> 8 | BA36: =IF(BA35=1,7,14) -> 14 | BD36: 2 | BE36: Greece
D37: ="Q4. Stuart wants to go on a "&BA36&" night holiday to "&BE40&". The holiday costs £"&AZ38&"." -> Q4. Stuart wants to go on a 14 night holiday to America. The holiday costs £1960. | AZ37: =ROUND(RAND()*(299-81)+81,0) -> 245 | BD37: 3 | BE37: America
AZ38: =AZ36*AZ37 -> 1960 | BD38: 4 | BE38: France
E39: ="He would like to go on holiday in "&AZ36&" months." -> He would like to go on holiday in 8 months. | BD39: 5 | BE39: Italy
BE40: =LOOKUP(BC35,BD35:BD39,BE35:BE39) -> America
E41: How much will he need to save each month ?
D45: ="Q5. Linda saves £"&AZ46&" a month for her holiday." -> Q5. Linda saves £58 a month for her holiday. | AZ45: =ROUND(RAND()*(9-3)+3,0) -> 7
AZ46: =ROUND(RAND()*(99-31)+31,0) -> 58
F47: ="How much will she have saved in "&AZ45&" months ?" -> How much will she have saved in 7 months ? | AZ47: =AZ45*AZ46 -> 406
AY50: =ROUND(RAND()*(2-1)+1,0) -> 1 | AZ50: =ROUND(RAND()*(7-4)+4,1) -> 6.1
D51: ="Q6. Laura needs some sun cream for her holidays." -> Q6. Laura needs some sun cream for her holidays. | AZ51: =ROUND(RAND()*(2-1)+1,0)*10 -> 20
AZ52: =ROUND(AZ50-AZ51/100*AZ50,2) -> 4.88
F53: She has two options to be from | AZ53: =IF(AY50=1,AZ52-ROUND(RAND()*(0.2-0.01)+0.01,2),AZ52+ROUND(RAND()*(0.2-0.01)+0.01,2)) -> 4.8
L55: Deal 1 | X55: Deal 2
L56: Tanget Sun Cream | X56: Brown Sun Cream
L57: =AZ53 -> 4.8 | X57: ="Normal Price £"&TEXT(AZ50,"0.00") -> Normal Price £6.10
X58: ="Discount "&AZ51&"%" -> Discount 20%
X59: Sale Price
AZ60: =AY50 -> 1
F61: Which Deal is better ? | P61: ( Enter 1 or 2 )
AY63: =ROUND(RAND()*(2-1)+1,0) -> 2 | AZ63: =ROUND(RAND()*(30-12)+12,1) -> 25.2
D64: ="Q7. Sean buys a pair of shorts for his holiday." -> Q7. Sean buys a pair of shorts for his holiday. | AZ64: =(2*ROUND(RAND()*(1-0)+0,0)+1)*25 -> 25
AZ65: =ROUND(AZ63-AZ64/100*AZ63,2) -> 18.9
AZ66: =IF(AY63=1,AZ65-ROUND(RAND()*(0.2-0.01)+0.01,2),AZ65+ROUND(RAND()*(0.2-0.01)+0.01,2)) -> 19.09
L68: Shop 1 | X68: Shop 2
L69: Pattern Shorts | X69: Pattern Shorts
L70: =AZ66 -> 19.09 | X70: ="Normal Price £"&TEXT(AZ63,"0.00") -> Normal Price £25.20
X71: ="Discount "&AZ64&"%" -> Discount 25%
X72: Sale Price
AZ73: =AY63 -> 2
F74: Which shop offers the cheaper deal ? | T74: ( Enter 1 or 2 )
AW76: =ROUND(RAND()*(3-1)+1,0) -> 2 | AX76: 1 | AY76: Sunshine
AW77: =IF(AW76=3,1,AW76+1) -> 3 | AX77: 2 | AY77: beach
AW78: =IF(AW77=3,1,AW77+1) -> 1 | AX78: 3 | AY78: Waterpark
AY79: =LOOKUP(AW76,AX76:AX78,AY76:AY78) -> beach
D80: ="Q8. Sean researches why people go to Crete on holiday." -> Q8. Sean researches why people go to Crete on holiday. | AY80: =LOOKUP(AW77,AX76:AX78,AY76:AY78) -> Waterpark
AY81: =LOOKUP(AW78,AX76:AX78,AY76:AY78) -> Sunshine
C83: The results are shown in the table below:
E85: =BB93 -> beach | K85: =BH93 -> Waterpark | Q85: =BE93 -> beach | W85: =BA93 -> beach | AC85: =AW93 -> beach | AT85: =ROUND(RAND()*(8-1)+1,0) -> 6 | AU85: 1 | AV85: =$AY$79 -> beach | AW85: =$AY$79 -> beach | AX85: beach | AY85: beach | AZ85: beach | BA85: beach | BB85: beach | BC85: beach | BD85: beach | BE85: beach | BF85: beach | BG85: =$AY$80 -> Waterpark | BH85: =$AY$80 -> Waterpark | BI85: Waterpark | BJ85: Waterpark | BK85: Waterpark | BL85: Waterpark | BM85: Waterpark | BN85: =$AY$81 -> Sunshine | BO85: =$AY$81 -> Sunshine | BQ85: 11 | BR85: 7 | BS85: 2
E86: =BO93 -> Sunshine | K86: =BK93 -> Waterpark | Q86: =BF93 -> Waterpark | W86: =BL93 -> Sunshine | AC86: =BI93 -> Waterpark | AU86: 2 | AV86: beach | AW86: beach | AX86: beach | AY86: beach | AZ86: beach | BA86: beach | BB86: beach | BC86: beach | BD86: beach | BE86: =$AY$80 -> Waterpark | BF86: =$AY$80 -> Waterpark | BG86: Waterpark | BH86: Waterpark | BI86: Waterpark | BJ86: Waterpark | BK86: =$AY$81 -> Sunshine | BL86: =$AY$81 -> Sunshine | BM86: Sunshine | BN86: Sunshine | BO86: Sunshine | BQ86: 9 | BR86: 6 | BS86: 5
E87: =BN93 -> Sunshine | K87: =BD93 -> beach | Q87: =BG93 -> Waterpark | W87: =AY93 -> beach | AC87: =AX93 -> beach | AU87: 3 | AV87: beach | AW87: beach | AX87: beach | AY87: beach | AZ87: beach | BA87: beach | BB87: beach | BC87: beach | BD87: beach | BE87: beach | BF87: =$AY$80 -> Waterpark | BG87: Waterpark | BH87: Waterpark | BI87: Waterpark | BJ87: Waterpark | BK87: Waterpark | BL87: Waterpark | BM87: =$AY$81 -> Sunshine | BN87: Sunshine | BO87: Sunshine | BQ87: 10 | BR87: 7 | BS87: 3
E88: =BM93 -> Sunshine | K88: =BJ93 -> Waterpark | Q88: =BC93 -> beach | W88: =AZ93 -> beach | AC88: =AV93 -> beach | AU88: 4 | AV88: beach | AW88: beach | AX88: beach | AY88: beach | AZ88: beach | BA88: beach | BB88: beach | BC88: beach | BD88: =$AY$80 -> Waterpark | BE88: =$AY$80 -> Waterpark | BF88: Waterpark | BG88: Waterpark | BH88: Waterpark | BI88: Waterpark | BJ88: Waterpark | BK88: =$AY$81 -> Sunshine | BL88: =$AY$81 -> Sunshine | BM88: Sunshine | BN88: Sunshine | BO88: Sunshine | BQ88: 8 | BR88: 7 | BS88: 5
AU89: 5 | AV89: beach | AW89: beach | AX89: beach | AY89: beach | AZ89: beach | BA89: beach | BB89: beach | BC89: beach | BD89: beach | BE89: Waterpark | BF89: Waterpark | BG89: Waterpark | BH89: Waterpark | BI89: Waterpark | BJ89: Waterpark | BK89: Waterpark | BL89: =$AY$81 -> Sunshine | BM89: Sunshine | BN89: Sunshine | BO89: Sunshine | BQ89: 9 | BR89: 7 | BS89: 4
AU90: 6 | AV90: beach | AW90: beach | AX90: beach | AY90: beach | AZ90: beach | BA90: beach | BB90: beach | BC90: beach | BD90: beach | BE90: beach | BF90: =$AY$80 -> Waterpark | BG90: Waterpark | BH90: Waterpark | BI90: Waterpark | BJ90: Waterpark | BK90: Waterpark | BL90: =$AY$81 -> Sunshine | BM90: Sunshine | BN90: Sunshine | BO90: Sunshine | BQ90: 10 | BR90: 6 | BS90: 4
C91: (a) Summarise the results in a frequency table. | AU91: 7 | AV91: beach | AW91: beach | AX91: beach | AY91: beach | AZ91: beach | BA91: beach | BB91: beach | BC91: beach | BD91: beach | BE91: beach | BF91: beach | BG91: beach | BH91: =$AY$80 -> Waterpark | BI91: Waterpark | BJ91: Waterpark | BK91: Waterpark | BL91: Waterpark | BM91: =$AY$81 -> Sunshine | BN91: Sunshine | BO91: Sunshine | BQ91: 12 | BR91: 5 | BS91: 3
AU92: 8 | AV92: beach | AW92: beach | AX92: beach | AY92: beach | AZ92: beach | BA92: beach | BB92: beach | BC92: beach | BD92: beach | BE92: beach | BF92: beach | BG92: =$AY$80 -> Waterpark | BH92: =$AY$80 -> Waterpark | BI92: Waterpark | BJ92: Waterpark | BK92: Waterpark | BL92: Waterpark | BM92: =$AY$81 -> Sunshine | BN92: Sunshine | BO92: Sunshine | BQ92: 11 | BR92: 6 | BS92: 3
P93: Main Reason | V93: Frequency | AV93: =LOOKUP($AT$85,$AU$85:$AU$92,AV85:AV92) -> beach | AW93: =LOOKUP($AT$85,$AU$85:$AU$92,AW85:AW92) -> beach | AX93: beach | AY93: beach | AZ93: beach | BA93: beach | BB93: beach | BC93: beach | BD93: beach | BE93: beach | BF93: Waterpark | BG93: Waterpark | BH93: Waterpark | BI93: Waterpark | BJ93: Waterpark | BK93: Waterpark | BL93: Sunshine | BM93: Sunshine | BN93: Sunshine | BO93: Sunshine | BQ93: =LOOKUP($AT$85,$AU$85:$AU$92,BQ85:BQ92) -> 10 | BR93: =LOOKUP($AT$85,$AU$85:$AU$92,BR85:BR92) -> 6 | BS93: 4 | BT93: =SUM(BQ93:BS93) -> 20
P94: =AY79 -> beach
P95: =AY80 -> Waterpark
P96: =AY81 -> Sunshine
P97: Total
C100: (b) Construct a bar graph to display the data.
AY103: =AY79 -> beach | AZ103: =BQ93 -> 10
AY104: =AY80 -> Waterpark | AZ104: =BR93 -> 6
AY105: =AY81 -> Sunshine | AZ105: =BS93 -> 4
AZ106: =AZ103-AZ105 -> 6
C125: =" (c) How many more people chose the "&AY103&" than the "&AY105&"." -> (c) How many more people chose the beach than the Sunshine.
C128: =" (d) What do most people like to do in Crete ?" -> (d) What do most people like to do in Crete ? | AF128: ( Enter beach , waterpark or sunshine )
D133: ="Q9. Tam McAdam goes to a restaurant in Crete for a meal. Below is a summary of food categories he can chose from." -> Q9. Tam McAdam goes to a restaurant in Crete for a meal. Below is a summary of food categories he can chose from.
AZ135: =ROUND(RAND()*(2-1)+1,0) -> 2 | BA135: =ROUND(RAND()*(3-1)+1,0) -> 3 | BB135: =IF(BA135=1,BA135+1,IF(BA135=2,BA135+1,1)) -> 1 | BC135: =IF(BB135=1,BB135+1,IF(BB135=2,BB135+1,1)) -> 2
S136: =AY136 -> 5 | T136: Different starters | AX136: =MAX(AY136:AY141) -> 13 | AY136: =ROUND(RAND()*(8-5)+5,0) -> 5 | AZ136: Starters
AX137: =MIN(AY136:AY141) -> 3 | AY137: =ROUND(RAND()*(9-5)+5,0) -> 7 | AZ137: =IF(BA135=1,"Pasta",IF(BA135=2,"Pork","Vegetarian")) -> Vegetarian
S138: =AY137 -> 7 | T138: =AZ137&" dishes" -> Vegetarian dishes | AY138: =ROUND(RAND()*(16-10)+10,0) -> 13 | AZ138: =IF(AZ135=1,"Chicken","Beef") -> Beef
AY139: =ROUND(RAND()*(9-6)+6,0) -> 7 | AZ139: =IF(AZ135=2,"Chicken","Beef") -> Chicken
S140: =AY138 -> 13 | T140: =AZ138&" dishes" -> Beef dishes | AY140: =ROUND(RAND()*(8-5)+5,0) -> 6 | AZ140: =IF(BB135=1,"Pasta",IF(BB135=2,"Pork","Vegetarian")) -> Pasta
AY141: =ROUND(RAND()*(4-1)+1,0) -> 3 | AZ141: =IF(BC135=1,"Pasta",IF(BC135=2,"Pork","Vegetarian")) -> Pork
S142: =AY139 -> 7 | T142: =AZ139&" dishes" -> Chicken dishes
AY143: =MAX(AY136:AY141) -> 13
S144: =AY140 -> 6 | T144: =AZ140&" dishes" -> Pasta dishes | AY144: =MIN(AY136:AY141) -> 3
S146: =AY141 -> 3 | T146: =AZ141&" dishes" -> Pork dishes | AY146: =AY143-AY144 -> 10
F148: ="(a) How many more types of "&T140&" are there than "&T146&" ?" -> (a) How many more types of Beef dishes are there than Pork dishes ?
F151: ="(a) Which category has the least choice on the menu ?" -> (a) Which category has the least choice on the menu ? | AY151: =AZ141 -> Pork
